Cogmind - Beta 13 @@@ ROGUE MODE // 2024.05.01 @ 19:15:28 Player: MarKhan Result: Destroyed by I1-8OW(R) with Subdweller Machine Gun Performance ------------- Evolutions (0) 0 Regions Visited (2) 400 Robots Destroyed (11) 55 Value Destroyed (268) 268 Prototype IDs (6) 120 Alien Tech Used (0) 0 Bonus (-16) -16 TOTAL SCORE: 827 Bonus ------- Friendly Fire -16 Cogmind --------- Core Integrity 0/250 Matter 259/300 Energy 100/100 System Corruption 0% Temperature Cool (0) Movement Rolling (110) Location -10/Subcaves Parts ------- > --- POWER (1) -------- (None) > --- PROPULSION (2) --- Subdweller Monowheel > --- UTILITY (2) ------ (None) > --- WEAPON (2) ------- (None) > --- INVENTORY (5) ---- Ion Engine Ion Engine Backup Power I Peak State ------------ > --- POWER ------------ Light Nuclear Core > --- PROPULSION ------- Subdweller Monowheel Subdweller Monowheel > --- UTILITY ---------- Large Storage Unit Light Armor Plating > --- WEAPON ----------- Assault Rifle Assault Rifle > --- INVENTORY -------- Ion Engine Ion Engine Light Ion Engine Light Ion Engine Backup Power I Wheel Improved Heat Sink Huge Storage Unit Small Matter Pod Improved Terrain Scanner Light Armor Plating Scrap Shield EM Pulse Gun Datajack [Rating: 13] Favorites ----------- Power Light Nuclear Core Engine Ion Engine Power Core Light Nuclear Core Propulsion Wheel Wheel Wheel Utility Improved Terrain Scanner Device Improved Terrain Scanner Storage Large Storage Unit Protection Light Armor Plating Weapon Assault Rifle Ballistic Gun Assault Rifle Build | -11 -10 -10 ------- Run | Yrd Mat Sub Slots Evolved . | . . . Power . | . . . Propulsion . | . . . Utility . | . . . Weapon . | . . . Parts Attached 23 | 7 10 6 Power 4 | 1 3 . Engine 2 | 1 1 . Core 2 | . 2 . Reactor . | . . . Propulsion 6 | 2 1 3 Treads . | . . . Leg . | . . . Wheel 6 | 2 1 3 Hover . | . . . Flight . | . . . Utility 9 | 2 4 3 Device 2 | 1 1 . Storage 4 | 1 3 . Processor . | . . . Hackware . | . . . Protection 3 | . . 3 Artifact . | . . . Weapon 4 | 2 2 . Energy Gun . | . . . Energy Cannon . | . . . Ballistic Gun 4 | 2 2 . Ballistic Cannon . | . . . Launcher . | . . . Special Weapon . | . . . Impact Weapon . | . . . Slashing Weapon . | . . . Piercing Weapon . | . . . Special Melee Weapon . | . . . Unidentified Prototypes . | . . . Parts Lost 8 | . 1 7 Power 1 | . . 1 Propulsion 4 | . 1 3 Utility 1 | . . 1 Weapon 2 | . . 2 Highest Loss Streak 5 | . 1 5 To Critical Strikes . | . . . Average Slot Usage (%) 98 | . 98 92 Engine 2 | . 2 . Core 11 | . 11 12 Wheel 27 | . 27 25 Device 12 | . 13 2 Storage 13 | . 14 12 Protection 1 | . . 11 Ballistic Gun 27 | . 27 24 Naked Turns . | . . . Heaviest Build 89 | 14 89 32 Greatest Support 40 | 26 26 40 Greatest Overweight (x) 4 | . 4 3 Average Overweight (x) . | . . 1 Largest Inventory Capacity 25 | 8 25 15 Average Capacity 13 | 6 13 13 Most Carried 15 | 8 15 15 Average Carried 11 | 5 11 13 Final Capacity 15 | 8 15 5 Final Carried 15 | 8 15 3 Class Distribution -------------------- 100% | Mutant Dominant Class ---------------- Mutant | -10/Materials Mutant | -10/Subcaves Resources | -11 -10 -10 ----------- Run | Yrd Mat Sub Matter Collected 697 | 233 438 26 Remotely . | . . . Salvage Created 352 | 17 335 . Parts 25 | 4 21 . Haulers Intercepted . | . . . Recyclers Shooed . | . . . Parts Field Recycled . | . . . Retrieved Matter . | . . . Parts Self-Destructed 7 | . . 7 Prevented . | . . . Kills | -11 -10 -10 ------- Run | Yrd Mat Sub Combat Hostiles Destroyed 9 | . 9 . Guns 9 | . 9 . Classes Destroyed 4 | 1 3 . Worker 1 | . 1 . Tunneler 1 | 1 . . Swarmer 3 | . 3 . Grunt 6 | . 6 . Best Kill Streak 3 | 1 3 . Combat Bots Only 3 | . 3 . Max Kills in Single Turn 2 | 1 2 . Gunslinging 1 | . 1 . Exploded . | . . . Melee . | . . . Uniques/NPCs Destroyed . | . . . Combat | -11 -10 -10 -------- Run | Yrd Mat Sub Hostile Shots Fired 109 | . 43 66 Missed 32 | . 11 21 Damage Taken 1340 | . 366 974 Core 260 | . 69 191 Absorbed by Shields . | . . . Regen/Repaired (Parts) 113 | . 113 . Core Remaining (%) 100 | 100 . . Volleys Fired 65 | 3 55 7 Largest 2 | 2 2 2 Hottest 40 | 40 40 40 Shots Fired 130 | 6 110 14 Gun 130 | 6 110 14 Cannon . | . . . Launcher . | . . . Special . | . . . Kinetic 130 | 6 110 14 Thermal . | . . . Explosive . | . . . Electromagnetic . | . . . Robot Hit Streak 11 | 1 11 7 Robot Miss Streak 7 | 4 7 2 Penetration Max . | . . . Secondary Targets 1 | . 1 . Max Gunslinging Chain 1 | . 1 . Shots Hit Robots 63 | 1 52 10 Core Hits 22 | 1 19 2 Critical Kills . | . . . Critical Parts Destroyed . | . . . Critical Strikes . | . . . Melee Attacks . | . . . Impact . | . . . Slashing . | . . . Piercing . | . . . Sneak Attacks . | . . . Combat Hostiles . | . . . Follow-up Attacks . | . . . Damage Inflicted 689 | 11 568 110 Guns 689 | 11 568 110 Cannons . | . . . Explosions . | . . . Melee . | . . . Ramming . | . . . Kinetic 689 | 11 568 110 Thermal . | . . . Explosive . | . . . Electromagnetic . | . . . Impact . | . . . Slashing . | . . . Piercing . | . . . Highest Corruption . | . . . Average Corruption . | . . . Corruption Purged . | . . . Corruption Blocked . | . . . Overload Shots . | . . . Overflow Damage . | . . . Projectiles . | . . . Explosions . | . . . Melee . | . . . Knockbacks . | . . . Impact . | . . . Kinetic . | . . . Secondary . | . . . Self-Inflicted Damage . | . . . Shots . | . . . Rammed . | . . . Targets Rammed . | . . . Kicked . | . . . Crushed . | . . . Highest Temperature 9 | . 9 . Average Temperature 4 | . 4 . Received Heat Transfer 300 | . 147 153 Siege Activations . | . . . Robots Corrupted . | . . . Combat Hostiles . | . . . Parts Fried . | . . . Impact Corruptions . | . . . Robots Melted . | . . . Combat Hostiles . | . . . Parts Melted . | . . . Heat Transferred . | . . . Parts Sabotaged . | . . . Parts Stolen . | . . . Parts Stripped . | . . . Power Chain Reactions . | . . . Alert | -11 -10 -10 ------- Run | Yrd Mat Sub Peak Influence 297 | 5 297 . Initial 3 | . 3 . Average 109 | 1 117 . Maximum Alert Level 1 | . 1 . Low Security (%) 79 | 100 77 . Level 1 20 | . 22 . Level 2 . | . . . Level 3 . | . . . Level 4 . | . . . Level 5 . | . . . High Security . | . . . Max Security . | . . . Squads Dispatched 1 | . 1 . Investigation . | . . . Extermination . | . . . Reinforcement 1 | . 1 . Assault . | . . . Garrison . | . . . Intercept . | . . . Searches Triggered . | . . . Construction Impeded . | . . . Haulers Reinforced . | . . . Active Scanning Responses . | . . . Cargo Convoy Interrupts . | . . . Stealth | -11 -10 -10 --------- Run | Yrd Mat Sub Distress Signals 1 | . 1 . Communications Jammed . | . . . Distress Signals . | . . . Times Spotted 37 | . 23 14 Peak Tracking Total 12 | . 4 12 Tactical Retreats 1 | . 1 . Traps | -11 -10 -10 ------- Run | Yrd Mat Sub Traps Triggered . | . . . Indirectly . | . . . Trap Hack Attempts . | . . . Triggered . | . . . Disarmed . | . . . Reprogrammed . | . . . Reused . | . . . Traps Extracted . | . . . Installed . | . . . Triggered . | . . . Machines | -11 -10 -10 ---------- Run | Yrd Mat Sub Machines Disabled . | . . . Max in Single Turn . | . . . Machines Repaired . | . . . Machines Dismantled . | . . . Machines Sabotaged . | . . . Overloaded Fab Kills . | . . . Hacking | -11 -10 -10 --------- Run | Yrd Mat Sub Machines Accessed 8 | . 8 . Terminals 6 | . 6 . Fabricators . | . . . Repair Stations 1 | . 1 . Recycling Units 1 | . 1 . Scanalyzers . | . . . Garrison Access . | . . . Total Hacks 39 | . 39 . Successful 23 | . 23 . Failed 16 | . 16 . Catastrophic 3 | . 3 . Database Lockouts . | . . . Manual 15 | . 15 . Terminals 28 | . 28 . Fabricators . | . . . Repair Stations 9 | . 9 . Recycling Units 2 | . 2 . Scanalyzers . | . . . Garrison Access . | . . . Terminal Hacks 9 | . 9 . Prototype ID Bank 4 | . 4 . Terminal Index 1 | . 1 . Alert Level 1 | . 1 . Locate Traps 3 | . 3 . Fabricator Hacks . | . . . Repair Station Hacks 7 | . 7 . Scan Component 3 | . 3 . Repair 3 | . 3 . Refit 1 | . 1 . Recycling Unit Hacks 1 | . 1 . Report Inventory 1 | . 1 . Scanalyzer . | . . . Garrison Access Hacks . | . . . Unauthorized Hacks 6 | . 6 . Terminals 5 | . 5 . Botnet 5 | . 5 . Fabricators . | . . . Repair Stations . | . . . Recycling Units 1 | . 1 . Monitor 1 | . 1 . Scanalyzers . | . . . Garrison Access . | . . . Data Cores Recovered . | . . . Used . | . . . Hacking Detections 8 | . 8 . Full Trace Events 2 | . 2 . Feedback Events . | . . . Feedback Blocked . | . . . Robot Schematics Acquired . | . . . Robots Built . | . . . Authchips . | . . . Time . | . . . Total Robot Build Rating . | . . . Part Schematics Acquired . | . . . Parts Built . | . . . Authchips . | . . . Time . | . . . Total Part Build Rating . | . . . Parts Repaired 3 | . 3 . Time 102 | . 102 . Parts Recycled . | . . . Recycled Matter . | . . . Retrieved Matter . | . . . Retrieved Components . | . . . Parts Scanalyzed . | . . . Part Schematics Acquired . | . . . Parts Damaged . | . . . Bothacking | -11 -10 -10 ------------ Run | Yrd Mat Sub Used RIF Installer . | . . . Robots Hacked . | . . . Non-combat . | . . . Combat . | . . . Robot Hacks Applied . | . . . Relay Couplers Released . | . . . Fabnet Peak Effective % . | . . . Robots Rewired . | . . . Allies Hacked . | . . . Hacks Repelled . | . . . Allies | -11 -10 -10 -------- Run | Yrd Mat Sub Total Allies . | . . . Largest Group . | . . . Highest-Rated Group . | . . . Highest-Rated Ally . | . . . Total Orders . | . . . Ally Attacks . | . . . Total Damage . | . . . Kills . | . . . Allies Corrupted . | . . . Allies Melted . | . . . Intel | -11 -10 -10 ------- Run | Yrd Mat Sub Robot Analysis Total . | . . . Derelict Logs Recovered . | . . . Drone Launches . | . . . Drone Recoveries . | . . . Exploration | -11 -10 -10 ------------- Run | Yrd Mat Sub Turns Passed 1366 | 91 1141 134 Spaces Moved 1015 | 73 858 84 Core 2 | 2 . . Treads . | . . . Legs . | . . . Wheels 1013 | 71 858 84 Hover . | . . . Flight . | . . . Fastest Speed 50 | 50 80 95 Average Speed 94 | 88 93 108 Slowest Speed 140 | 90 140 125 Overloaded Moves . | . . . Propulsion Burnouts . | . . . Robots Hopped . | . . . Cave-ins Triggered . | . . . Exploration Rate (%) 31 | 5 82 7 Regions Visited 2 Branch Regions 1 Pre-discovered Areas . | . . . Known Exits Taken . | . . . Unknown Exits Taken 2 | 1 1 . Scrap Searched . | . . . Spaces Dug . | . . . Terrain Destroyed . | . . . Melee . | . . . Projectile . | . . . AOE . | . . . Terrain Rammed . | . . . Walls Destroyed . | . . . Machines Disabled . | . . . Actions | -11 -10 -10 --------- Run | Yrd Mat Sub Total 1304 | 90 1101 113 Wait 169 | . 159 10 Move 1013 | 72 857 84 Hop . | . . . Pick Up 21 | 8 12 1 Fast Attach 11 | 7 2 2 Attach 2 | . 1 1 Detach . | . . . Swap 10 | . 7 3 Drop 13 | . 8 5 Fire 65 | 3 55 7 Melee . | . . . Ram . | . . . Kick . | . . . Crush . | . . . Escape Stasis . | . . . Rewire . | . . . Trap . | . . . Miscellaneous . | . . . Route ------- -11/Scrapyard -10/Materials (discovered 3 exits: [*Mat x2] / [*Sub]) -10/Subcaves History --------- Turn | Location | Event 17 | -11/Scrapyard | Discovered new exit (range 15) 92 | -11/Scrapyard | Entered Materials 301 | -10/Materials | Build established: Mutant 364 | -10/Materials | Repaired Assault Rifle 452 | -10/Materials | Discovered new exit (range 16) 566 | -10/Materials | Discovered new exit (range 13) 1097 | -10/Materials | Repaired Imp. Terrain Scanner 1137 | -10/Materials | Repaired Lgt. Nuclear Core 1224 | -10/Materials | Discovered new exit (range 10) 1233 | -10/Materials | Entered Subcaves 1323 | -10/Subcaves | Ambushed by swarm of Subdwellers 1323 | -10/Subcaves | Ambushed by Subdwellers from Twisted Machinery 1323 | -10/Subcaves | Ambushed by Subdwellers from Twisted Machinery 1323 | -10/Subcaves | Ambushed by Subdwellers from Twisted Machinery 1324 | -10/Subcaves | Ambushed by Subdwellers from Twisted Machinery 1324 | -10/Subcaves | Ambushed by Subdwellers from Twisted Machinery 1353 | -10/Subcaves | Core integrity fell below 50% 1361 | -10/Subcaves | Core integrity fell below 20% 1367 | -10/Subcaves | Destroyed by I1-8OW(R) with Subdweller Machine Gun Last Messages --------------- 01337_ 3I-0D4(g) destroyed. 01338_ VZ-MTZ(R) suffers critical hit (Burn). 01338_ VO-GQW(g) suffers critical hit (Destroy). 01341_ 5F-I33(g) destroyed. 01342_ VZ-MTZ(R) destroyed. 01345_ VO-GQW(g) destroyed. 01348_ I1-8OW(R) affixes Scrap Shield Fragment to Scrap Shield. 01349_ Assault Rifle destroyed. 01350_ Subatomizers dissect the Sub. Power Source. 01350_ Assault Rifle destroyed. 01350_ Dropped Lrg. Storage Unit. 01351_ Dropped Lgt. Armor Plating. 01351_ Lgt. Nuclear Core destroyed. 01351_ Dropped Scrap Shield. 01355_ Acquired Scrap Shield. 01360_ Scrap Shield destroyed. 01362_ Sub. Monowheel destroyed. Map ----- +----------------------------------------------------+ | ?????????????????????????????????????????????????? | | ?????????????????????????????????????????????????? | | ?????????????????????????????????????????????????? | | ???????????????????????????????????????#?????????? | | ?????????????????????????????????????????????????? | | ??????????????????????????????????????????#??????? | | ??????????????????????????????????????????#???#??? | | ?????????????????????????????????#####???????????? | | ?????????? #?????????????????????## ##??????????? | | ????????? ?????????????????????# ! ###????????? | | ????????? ??????????????####??# #????????? | | ???? ????# #?????????????## #####= ##????????? | | ???? ??? ???????###??## ## ##?????????? | | ???? ??## ??????## ### ## #??????????? | | ????# ??# #?????## ### ##?????????? | | ????# ??? #?????? # # ####??????? | | ????# ??# ??????????# ##?????? | | ???## ??# #??????????# ###???? | | ???# ?## ############ " #???? | | ???## ## ## % [& #"#### #???? | | ???# # & RR %&#####?? #??? | | ???##% %%! /!R *###?#???# #?? | | ???#" %* =%%=%!!![ # # # #### | | ????#" [!%!&!**=* ## # | | ???## %%*!%[### ! #### ##? | | ???# !% ! ##?## #?# @ # ### #?? | | ??# [ #??# #?#########?## ##### ##?? | | # " #??######????????????# ####????###??? | | ### #????????????????????###?????????????? | | ??# # #????????????????????????????????????? | | ??#### # #????????????????????????????????????? | | ?????### #????????????????????????????????????? | | ???????## ##????????????????????????????????????? | | ???????? ?????????????????????????????????????? | | ????????# ?????????????????????????????????????? | | ???????? # ?????????????????????????????????????? | | ???????? ? ????????????????????????????????????? | | ???????? ? ????????????????????????????????????? | | ????????#? ????????????????????????????????????? | | ?????????? #????????????????????????????????????? | | ?????????????????????????????????????????????????? | | ?????????????????????????????????????????????????? | | ?????????????????????????????????????????????????? | | ?????????????????????????????????????????????????? | | ?????????????????????????????????????????????????? | | ?????????????????????????????????????????????????? | | ?????????????????????????????????????????????????? | | ?????????????????????????????????????????????????? | | ?????????????????????????????????????????????????? | | ?????????????????????????????????????????????????? | +----------------------------------------------------+ Best States ------------- Heat Dissipation 25 Energy Generation 14 Energy Capacity 250 Matter Stores 300 Matter Capacity 300 Sight Range 16 Terrain Scan Range 16 Terrain Scan Density 10 Armor Coverage 800 Evasion (%) 44 Item Schematics ----------------- None Robot Schematics ------------------ None Fabricated ------------ Nothing Alien Tech Used ----------------- None Achievements -------------- root@ Challenges ------------ None Game ------ Seed BiometalMicroStorm Manual? 0 Play Time 00:23:38 Cumulative 16.0 hours Start 2024.05.01 @ 18:54:49 End 2024.05.01 @ 19:15:28 Sessions 1 Manual Loads 0 Difficulty Rogue Special Mode None Game No. 18 Rogue 18 Adventurer 0 Explorer 0 Win Type - Total 0 Types 0/0/0/0/0/0/0/0/0 Lore% 10 Gallery% 17 Achievement% 16 Wizard Run 0 Options --------- Layout 1 ASCII 0 Keyboard 1 Movement Arrows Keybinds 0 Fullscreen 2 Font 24/Smallcaps Map View 50x35 Zoom Use 0% Tactical HUD 1 Map Filters NONE Filters NONE Steam 1 RUN: a20c710d-2190-4368-8d06-6742c2e8c2e1